Workbook

Sheet Salary Calculator
A8: STEP 1 - | B8: Will the Researcher be Professional Staff (e.g. Research Assistant, | H8: Academic
B9: Project Officer) or Academic Staff (e.g. Postdoctoral Fellow) ? | H9: Professional
A11: STEP 2 - | B11: Select the Level & Step at which the Researcher will | F11: Level:
B12: commence: | F12: Step:
G13: =IF(G8="Academic",VLOOKUP(CONCATENATE('Salary Calculator'!$G$11,'Salary Calculator'!$G$12),'A-DATA'!A2:B20,2,FALSE),IF(G8="Professional",VLOOKUP((G11*10)+G12,'P-DATA'!A2:B21,2,FALSE),"")) -> 
A15: STEP 3 - | B15: Enter the start year for the Researcher:
A18: STEP 4 - | B18: Enter how many calendar years will the Researcher be employed:
A21: STEP 5 - | B21: Select the FTE in each year in the table below:
B23: Year | C23: Level / Step | D23: Select FTE… ¯ ¯ ¯ | E23: Salary + 30% on-costs
B24: 2022 | C24: =IF(AND($G$15+$G$18-A39>0,A39>=$G$15,$G$8="Academic"),VLOOKUP(V39,'A-DATA'!$B$2:$C$20,2,TRUE),IF(AND($G$15+$G$18-A39>0,A39>=$G$15,$G$8="Professional"),VLOOKUP(V39,'P-DATA'!$B$2:$C$21,2,TRUE),"")) ->  | E24: =IF(D24=0,"",HLOOKUP(D24,$B$38:$T$45,2,FALSE)) -> 
B25: 2023 | C25: =IF(AND($G$15+$G$18-A40>0,A40>=$G$15,$G$8="Academic"),VLOOKUP(V40,'A-DATA'!$B$2:$C$20,2,TRUE),IF(AND($G$15+$G$18-A40>0,A40>=$G$15,$G$8="Professional"),VLOOKUP(V40,'P-DATA'!$B$2:$C$21,2,TRUE),"")) ->  | E25: =IF(D25=0,"",HLOOKUP(D25,$B$38:$T$45,3,FALSE)) -> 
B26: 2024 | C26: =IF(AND($G$15+$G$18-A41>0,A41>=$G$15,$G$8="Academic"),VLOOKUP(V41,'A-DATA'!$B$2:$C$20,2,TRUE),IF(AND($G$15+$G$18-A41>0,A41>=$G$15,$G$8="Professional"),VLOOKUP(V41,'P-DATA'!$B$2:$C$21,2,TRUE),"")) ->  | E26: =IF(D26=0,"",HLOOKUP(D26,$B$38:$T$45,4,FALSE)) -> 
B27: 2025 | C27: =IF(AND($G$15+$G$18-A42>0,A42>=$G$15,$G$8="Academic"),VLOOKUP(V42,'A-DATA'!$B$2:$C$20,2,TRUE),IF(AND($G$15+$G$18-A42>0,A42>=$G$15,$G$8="Professional"),VLOOKUP(V42,'P-DATA'!$B$2:$C$21,2,TRUE),"")) ->  | E27: =IF(D27=0,"",HLOOKUP(D27,$B$38:$T$45,5,FALSE)) -> 
B28: 2026 | C28: =IF(AND($G$15+$G$18-A43>0,A43>=$G$15,$G$8="Academic"),VLOOKUP(V43,'A-DATA'!$B$2:$C$20,2,TRUE),IF(AND($G$15+$G$18-A43>0,A43>=$G$15,$G$8="Professional"),VLOOKUP(V43,'P-DATA'!$B$2:$C$21,2,TRUE),"")) ->  | E28: =IF(D28=0,"",HLOOKUP(D28,$B$38:$T$45,6,FALSE)) -> 
B29: 2027 | C29: =IF(AND($G$15+$G$18-A44>0,A44>=$G$15,$G$8="Academic"),VLOOKUP(V44,'A-DATA'!$B$2:$C$20,2,TRUE),IF(AND($G$15+$G$18-A44>0,A44>=$G$15,$G$8="Professional"),VLOOKUP(V44,'P-DATA'!$B$2:$C$21,2,TRUE),"")) ->  | E29: =IF(D29=0,"",HLOOKUP(D29,$B$38:$T$45,7,FALSE)) -> 
B30: 2028 | C30: =IF(AND($G$15+$G$18-A45>0,A45>=$G$15,$G$8="Academic"),VLOOKUP(V45,'A-DATA'!$B$2:$C$20,2,TRUE),IF(AND($G$15+$G$18-A45>0,A45>=$G$15,$G$8="Professional"),VLOOKUP(V45,'P-DATA'!$B$2:$C$21,2,TRUE),"")) ->  | E30: =IF(D30=0,"",HLOOKUP(D30,$B$38:$T$45,8,FALSE)) -> 
D31: TOTAL | E31: =SUM(E24:E30) -> 0
A33: PLEASE NOTE: | B33: * The figures calculated by this tool are to assist you in prepaing Research Grant applications only. * This tool can be used to estimate in-kind contributions of UOW staff and estimate the cost of employing staff at UOW on research projects. * The figures include a nominal yearly % increase and are therefore projected estimates only. * They do not represent Union or UOW Management proposals for future EBAs.
A37: days per week | B37: 5 | C37: 4.75 | D37: 4.5 | E37: 4.25 | F37: 4 | G37: 3.75 | H37: 3.5 | I37: 3.25 | J37: 3 | K37: 2.75 | L37: 2.5 | M37: 2.25 | N37: 2 | O37: 1.75 | P37: 1.5 | Q37: 1.25 | R37: 1 | S37: 0.75 | T37: 0.5
A38: FTE | B38: 1 | C38: 0.95 | D38: 0.9 | E38: 0.85 | F38: 0.8 | G38: 0.75 | H38: 0.7 | I38: 0.65 | J38: 0.6 | K38: 0.55 | L38: 0.5 | M38: 0.45 | N38: 0.4 | O38: 0.35 | P38: 0.3 | Q38: 0.25 | R38: 0.2 | S38: 0.15 | T38: 0.1
A39: 2022 | B39: =IF(ISBLANK(D24),"",IF(AND($G$15+$G$18-A39>0,A39>=$G$15, G8="Academic"),IF($G$15=A39,VLOOKUP(V39,Academic!$A$2:'Academic'!$H$20,(2),TRUE),IF($G$15=A40,VLOOKUP(V40,Academic!$A$2:'Academic'!$H$20,(2),TRUE),IF($G$15=A41,VLOOKUP(V41,Academic!$A$2:'Academic'!$H$20,(2),TRUE),IF($G$15=A42,VLOOKUP(V42,Academic!$A$2:'Academic'!$H$20,(2),TRUE),IF($G$15=A43,VLOOKUP(V43,Academic!$A$2:'Academic'!$H$20,(2),TRUE),IF($G$15=A44,VLOOKUP(V44,Academic!$A$2:'Academic'!$H$20,(2),TRUE))))))),IF(AND($G$15+$G$18-A39>0,A39>=$G$15, G8="Professional"),IF($G$15=A39,VLOOKUP(V39,Professional!$A$2:'Professional'!$H$21,(2),TRUE),IF($G$15=A40,VLOOKUP(V40,Professional!$A$2:'Professional'!$H$21,(2),TRUE),IF($G$15=A41,VLOOKUP(V41,Professional!$A$2:'Professional'!$H$21,(2),TRUE),IF($G$15=A42,VLOOKUP(V42,Professional!$A$2:'Professional'!$H$21,(2),TRUE),IF($G$15=A43,VLOOKUP(V43,Professional!$A$2:'Professional'!$H$21,(2),TRUE),IF($G$15=A44,VLOOKUP(V44,Professional!$A$2:'Professional'!$H$21,(2),TRUE),"")))))),""))) ->  | C39: =IF(ISERROR($B39*$C$38),"",$B39*$C$38) ->  | D39: =IF(ISERROR($B39*$D$38),"",$B39*$D$38) ->  | E39: =IF(ISERROR($B39*$E$38),"",$B39*$E$38) ->  | F39: =IF(ISERROR($B39*$F$38),"",$B39*$F$38) ->  | G39: =IF(ISERROR($B39*$G$38),"",$B39*$G$38) ->  | H39: =IF(ISERROR($B39*$H$38),"",$B39*$H$38) ->  | I39: =IF(ISERROR($B39*$I$38),"",$B39*$I$38) ->  | J39: =IF(ISERROR($B39*$J$38),"",$B39*$J$38) ->  | K39: =IF(ISERROR($B39*$K$38),"",$B39*$K$38) ->  | L39: =IF(ISERROR($B39*$L$38),"",$B39*$L$38) ->  | M39: =IF(ISERROR($B39*$M$38),"",$B39*$M$38) ->  | N39: =IF(ISERROR($B39*$N$38),"",$B39*$N$38) ->  | O39: =IF(ISERROR($B39*$O$38),"",$B39*$O$38) ->  | P39: =IF(ISERROR($B39*$P$38),"",$B39*$P$38) ->  | Q39: =IF(ISERROR($B39*$Q$38),"",$B39*$Q$38) ->  | R39: =IF(ISERROR($B39*$R$38),"",$B39*$R$38) ->  | S39: =IF(ISERROR($B39*$S$38),"",$B39*$S$38) ->  | T39: =IF(ISERROR($B39*$T$38),"",$B39*$T$38) ->  | V39: =IF(AND($G$15+$G$18-A39>0,A39>=$G$15),$G$13+A39-$G$15,0) -> 0
A40: 2023 | B40: =IF(ISBLANK(D25),"",IF(AND($G$15+$G$18-A40>0,A40>=$G$15, G8="Academic"),IF($G$15=A39,VLOOKUP(V40,Academic!$A$2:'Academic'!$H$20,(3),TRUE),IF($G$15=A40,VLOOKUP(V40,Academic!$A$2:'Academic'!$H$20,(3),TRUE),IF($G$15=A41,VLOOKUP(V41,Academic!$A$2:'Academic'!$H$20,(3),TRUE),IF($G$15=A42,VLOOKUP(V42,Academic!$A$2:'Academic'!$H$20,(3),TRUE),IF($G$15=A43,VLOOKUP(V43,Academic!$A$2:'Academic'!$H$20,(3),TRUE),IF($G$15=A44,VLOOKUP(V44,Academic!$A$2:'Academic'!$H$20,(3),TRUE))))))),IF(AND($G$15+$G$18-A40>0,A40>=$G$15, G8="Professional"),IF($G$15=A39,VLOOKUP(V40,Professional!$A$2:'Professional'!$H$21,(3),TRUE),IF($G$15=A40,VLOOKUP(V40,Professional!$A$2:'Professional'!$H$21,(3),TRUE),IF($G$15=A41,VLOOKUP(V41,Professional!$A$2:'Professional'!$H$21,(3),TRUE),IF($G$15=A42,VLOOKUP(V42,Professional!$A$2:'Professional'!$H$21,(3),TRUE),IF($G$15=A43,VLOOKUP(V43,Professional!$A$2:'Professional'!$H$21,(3),TRUE),IF($G$15=A44,VLOOKUP(V44,Professional!$A$2:'Professional'!$H$21,(3),TRUE),"")))))),""))) ->  | C40: =IF(ISERROR($B40*$C$38),"",$B40*$C$38) ->  | E40: =IF(ISERROR($B40*$E$38),"",$B40*$E$38) ->  | G40: =IF(ISERROR($B40*$G$38),"",$B40*$G$38) ->  | I40: =IF(ISERROR($B40*$I$38),"",$B40*$I$38) ->  | K40: =IF(ISERROR($B40*$K$38),"",$B40*$K$38) ->  | M40: =IF(ISERROR($B40*$M$38),"",$B40*$M$38) ->  | O40: =IF(ISERROR($B40*$O$38),"",$B40*$O$38) ->  | Q40: =IF(ISERROR($B40*$Q$38),"",$B40*$Q$38) ->  | S40: =IF(ISERROR($B40*$S$38),"",$B40*$S$38) ->  | V40: =IF(AND($G$15+$G$18-A40>0,A40>=$G$15),IF($G$8="Academic",IF(AND(OR(MOD(V39,5)=0,MOD(V39,18)=0,MOD(V39,19)=0),V39>0),V39,$G$13+A40-$G$15),IF($G$11=67,IF(AND(MOD(V39,20)=0,V39>0),V39,$G$13+A40-$G$15),IF($G$11=5,IF(AND(MOD(V39,12)=0,V39>0),V39,$G$13+A40-$G$15),IF($G$11=34,IF(AND(MOD(V39,7)=0,V39>0),V39,$G$13+A40-$G$15))))),0) -> 0
A41: 2024 | B41: =IF(ISBLANK(D26),"",IF(AND($G$15+$G$18-A41>0,A41>=$G$15, G8="Academic"),IF($G$15=A39,VLOOKUP(V41,Academic!$A$2:'Academic'!$H$20,(4),TRUE),IF($G$15=A40,VLOOKUP(V41,Academic!$A$2:'Academic'!$H$20,(4),TRUE),IF($G$15=A41,VLOOKUP(V41,Academic!$A$2:'Academic'!$H$20,(4),TRUE),IF($G$15=A42,VLOOKUP(V42,Academic!$A$2:'Academic'!$H$20,(4),TRUE),IF($G$15=A43,VLOOKUP(V43,Academic!$A$2:'Academic'!$H$20,(4),TRUE),IF($G$15=A44,VLOOKUP(V44,Academic!$A$2:'Academic'!$H$20,(4),TRUE))))))),IF(AND($G$15+$G$18-A41>0,A41>=$G$15, G8="Professional"),IF($G$15=A39,VLOOKUP(V41,Professional!$A$2:'Professional'!$H$21,(4),TRUE),IF($G$15=A40,VLOOKUP(V41,Professional!$A$2:'Professional'!$H$21,(4),TRUE),IF($G$15=A41,VLOOKUP(V41,Professional!$A$2:'Professional'!$H$21,(4),TRUE),IF($G$15=A42,VLOOKUP(V42,Professional!$A$2:'Professional'!$H$21,(4),TRUE),IF($G$15=A43,VLOOKUP(V43,Professional!$A$2:'Professional'!$H$21,(4),TRUE),IF($G$15=A44,VLOOKUP(V44,Professional!$A$2:'Professional'!$H$21,(4),TRUE),"")))))),""))) ->  | V41: =IF(AND($G$15+$G$18-A41>0,A41>=$G$15),IF($G$8="Academic",IF(AND(OR(MOD(V40,5)=0,MOD(V40,18)=0,MOD(V40,19)=0),V40>0),V40,$G$13+A41-$G$15),IF($G$11=67,IF(AND(MOD(V40,20)=0,V40>0),V40,$G$13+A41-$G$15),IF($G$11=5,IF(AND(MOD(V40,12)=0,V40>0),V40,$G$13+A41-$G$15),IF($G$11=34,IF(AND(MOD(V40,7)=0,V40>0),V40,$G$13+A41-$G$15))))),0) -> 0
A42: 2025 | B42: =IF(ISBLANK(D27),"",IF(AND($G$15+$G$18-A42>0,A42>=$G$15, G8="Academic"),IF($G$15=A39,VLOOKUP(V42,Academic!$A$2:'Academic'!$H$20,(5),TRUE),IF($G$15=A40,VLOOKUP(V42,Academic!$A$2:'Academic'!$H$20,(5),TRUE),IF($G$15=A41,VLOOKUP(V42,Academic!$A$2:'Academic'!$H$20,(5),TRUE),IF($G$15=A42,VLOOKUP(V42,Academic!$A$2:'Academic'!$H$20,(5),TRUE),IF($G$15=A43,VLOOKUP(V43,Academic!$A$2:'Academic'!$H$20,(5),TRUE),IF($G$15=A44,VLOOKUP(V44,Academic!$A$2:'Academic'!$H$20,(5),TRUE))))))),IF(AND($G$15+$G$18-A42>0,A42>=$G$15, G8="Professional"),IF($G$15=A39,VLOOKUP(V42,Professional!$A$2:'Professional'!$H$21,(5),TRUE),IF($G$15=A40,VLOOKUP(V42,Professional!$A$2:'Professional'!$H$21,(5),TRUE),IF($G$15=A41,VLOOKUP(V42,Professional!$A$2:'Professional'!$H$21,(5),TRUE),IF($G$15=A42,VLOOKUP(V42,Professional!$A$2:'Professional'!$H$21,(5),TRUE),IF($G$15=A43,VLOOKUP(V43,Professional!$A$2:'Professional'!$H$21,(5),TRUE),IF($G$15=A44,VLOOKUP(V44,Professional!$A$2:'Professional'!$H$21,(5),TRUE),"")))))),""))) ->  | V42: 0
A43: 2026 | B43: =IF(ISBLANK(D28),"",IF(AND($G$15+$G$18-A43>0,A43>=$G$15, G8="Academic"),IF($G$15=A39,VLOOKUP(V43,Academic!$A$2:'Academic'!$H$20,(6),TRUE),IF($G$15=A40,VLOOKUP(V43,Academic!$A$2:'Academic'!$H$20,(6),TRUE),IF($G$15=A41,VLOOKUP(V43,Academic!$A$2:'Academic'!$H$20,(6),TRUE),IF($G$15=A42,VLOOKUP(V43,Academic!$A$2:'Academic'!$H$20,(6),TRUE),IF($G$15=A43,VLOOKUP(V43,Academic!$A$2:'Academic'!$H$20,(6),TRUE),IF($G$15=A44,VLOOKUP(V44,Academic!$A$2:'Academic'!$H$20,(6),TRUE))))))),IF(AND($G$15+$G$18-A43>0,A43>=$G$15, G8="Professional"),IF($G$15=A39,VLOOKUP(V43,Professional!$A$2:'Professional'!$H$21,(6),TRUE),IF($G$15=A40,VLOOKUP(V43,Professional!$A$2:'Professional'!$H$21,(6),TRUE),IF($G$15=A41,VLOOKUP(V43,Professional!$A$2:'Professional'!$H$21,(6),TRUE),IF($G$15=A42,VLOOKUP(V43,Professional!$A$2:'Professional'!$H$21,(6),TRUE),IF($G$15=A43,VLOOKUP(V43,Professional!$A$2:'Professional'!$H$21,(6),TRUE),IF($G$15=A44,VLOOKUP(V44,Professional!$A$2:'Professional'!$H$21,(6),TRUE),"")))))),""))) ->  | V43: 0
A44: 2027 | B44: =IF(ISBLANK(D29),"",IF(AND($G$15+$G$18-A44>0,A44>=$G$15, G8="Academic"),IF($G$15=A39,VLOOKUP(V44,Academic!$A$2:'Academic'!$H$20,(7),TRUE),IF($G$15=A40,VLOOKUP(V44,Academic!$A$2:'Academic'!$H$20,(7),TRUE),IF($G$15=A41,VLOOKUP(V44,Academic!$A$2:'Academic'!$H$20,(7),TRUE),IF($G$15=A42,VLOOKUP(V44,Academic!$A$2:'Academic'!$H$20,(7),TRUE),IF($G$15=A43,VLOOKUP(V44,Academic!$A$2:'Academic'!$H$20,(7),TRUE),IF($G$15=A44,VLOOKUP(V44,Academic!$A$2:'Academic'!$H$20,(7),TRUE))))))),IF(AND($G$15+$G$18-A44>0,A44>=$G$15, G8="Professional"),IF($G$15=A39,VLOOKUP(V44,Professional!$A$2:'Professional'!$H$21,(7),TRUE),IF($G$15=A40,VLOOKUP(V44,Professional!$A$2:'Professional'!$H$21,(7),TRUE),IF($G$15=A41,VLOOKUP(V44,Professional!$A$2:'Professional'!$H$21,(7),TRUE),IF($G$15=A42,VLOOKUP(V44,Professional!$A$2:'Professional'!$H$21,(7),TRUE),IF($G$15=A43,VLOOKUP(V44,Professional!$A$2:'Professional'!$H$21,(7),TRUE),IF($G$15=A44,VLOOKUP(V44,Professional!$A$2:'Professional'!$H$21,(7),TRUE),"")))))),""))) ->  | V44: 0
A45: 2028 | B45: =IF(ISBLANK(D30),"",IF(AND($G$15+$G$18-A45>0,A45>=$G$15, G8="Academic"),IF($G$15=A39,VLOOKUP(V45,Academic!$A$2:'Academic'!$H$20,(8),TRUE),IF($G$15=A40,VLOOKUP(V45,Academic!$A$2:'Academic'!$H$20,(8),TRUE),IF($G$15=A41,VLOOKUP(V45,Academic!$A$2:'Academic'!$H$20,(8),TRUE),IF($G$15=A42,VLOOKUP(V45,Academic!$A$2:'Academic'!$H$20,(8),TRUE),IF($G$15=A43,VLOOKUP(V45,Academic!$A$2:'Academic'!$H$20,(8),TRUE),IF($G$15=A44,VLOOKUP(V45,Academic!$A$2:'Academic'!$H$20,(8),TRUE))))))),IF(AND($G$15+$G$18-A45>0,A45>=$G$15, G8="Professional"),IF($G$15=A39,VLOOKUP(V45,Professional!$A$2:'Professional'!$H$21,(8),TRUE),IF($G$15=A40,VLOOKUP(V45,Professional!$A$2:'Professional'!$H$21,(8),TRUE),IF($G$15=A41,VLOOKUP(V45,Professional!$A$2:'Professional'!$H$21,(8),TRUE),IF($G$15=A42,VLOOKUP(V45,Professional!$A$2:'Professional'!$H$21,(8),TRUE),IF($G$15=A43,VLOOKUP(V45,Professional!$A$2:'Professional'!$H$21,(8),TRUE),IF($G$15=A44,VLOOKUP(V45,Professional!$A$2:'Professional'!$H$21,(8),TRUE),"")))))),""))) ->  | V45: 0
B46: =SUM(B39:B44) -> 0 | C46: =SUM(C39:C44) -> 0 | D46: 0 | E46: 0 | F46: 0 | G46: 0 | H46: 0 | I46: 0 | J46: 0 | K46: 0 | L46: 0 | M46: 0 | N46: 0 | O46: 0 | P46: 0 | Q46: 0 | R46: 0 | S46: 0 | T46: 0
B64: =QUOTIENT(100*A64,5)*5/100 -> 0
C66: IF (start year + No. of years - A11) > 0… AND A11 >= Start year

Sheet Salary Shortfall Calculator
A8: STEP 1 - | B8: Will the Researcher be Professional Staff (e.g. Research Assistant, | H8: Academic
B9: Project Officer) or Academic Staff (e.g. Postdoctoral Fellow) ? | H9: Professional
A11: STEP 2 - | B11: Select the Level & Step at which the Researcher will | F11: Level:
B12: commence: | F12: Step:
G13: =IF(G8="Academic",VLOOKUP(CONCATENATE('Salary Shortfall Calculator'!$G$11,'Salary Shortfall Calculator'!$G$12),'A-DATA'!A2:B20,2,FALSE),IF(G8="Professional",VLOOKUP((G11*10)+G12,'P-DATA'!A2:B21,2,FALSE),"")) -> 
A15: STEP 3 - | B15: Enter the start year for the Researcher:
A18: STEP 4 - | B18: Enter how many calendar years will the Researcher be employed:
A21: STEP 5 - | B21: Select the FTE in each year and enter the yearly Grant Salary Contribution in the table below:
B23: Year | C23: Level / Step | D23: Select FTE… ¯ ¯ ¯ | E23: Salary + 30% on-costs | F23: Grant Salary Contribution | G23: Salary Shortfall
B24: 2022 | C24: =IF(AND($G$15+$G$18-A39>0,A39>=$G$15,$G$8="Academic"),VLOOKUP(V39,'A-DATA'!$B$2:$C$20,2,TRUE),IF(AND($G$15+$G$18-A39>0,A39>=$G$15,$G$8="Professional"),VLOOKUP(V39,'P-DATA'!$B$2:$C$21,2,TRUE),"")) ->  | E24: =IF(D24=0,"",HLOOKUP(D24,$B$38:$T$45,2,FALSE)) ->  | G24: =IF(E24 = "", "", E24-F24) -> 
B25: 2023 | C25: =IF(AND($G$15+$G$18-A40>0,A40>=$G$15,$G$8="Academic"),VLOOKUP(V40,'A-DATA'!$B$2:$C$20,2,TRUE),IF(AND($G$15+$G$18-A40>0,A40>=$G$15,$G$8="Professional"),VLOOKUP(V40,'P-DATA'!$B$2:$C$21,2,TRUE),"")) ->  | E25: =IF(D25=0,"",HLOOKUP(D25,$B$38:$T$45,3,FALSE)) ->  | G25: =IF(E25 = "", "", E25-F25) -> 
B26: 2024 | C26: =IF(AND($G$15+$G$18-A41>0,A41>=$G$15,$G$8="Academic"),VLOOKUP(V41,'A-DATA'!$B$2:$C$20,2,TRUE),IF(AND($G$15+$G$18-A41>0,A41>=$G$15,$G$8="Professional"),VLOOKUP(V41,'P-DATA'!$B$2:$C$21,2,TRUE),"")) ->  | E26: =IF(D26=0,"",HLOOKUP(D26,$B$38:$T$45,4,FALSE)) -> 
B27: 2025 | C27: =IF(AND($G$15+$G$18-A42>0,A42>=$G$15,$G$8="Academic"),VLOOKUP(V42,'A-DATA'!$B$2:$C$20,2,TRUE),IF(AND($G$15+$G$18-A42>0,A42>=$G$15,$G$8="Professional"),VLOOKUP(V42,'P-DATA'!$B$2:$C$21,2,TRUE),"")) ->  | E27: =IF(D27=0,"",HLOOKUP(D27,$B$38:$T$45,5,FALSE)) -> 
B28: 2026 | C28: =IF(AND($G$15+$G$18-A43>0,A43>=$G$15,$G$8="Academic"),VLOOKUP(V43,'A-DATA'!$B$2:$C$20,2,TRUE),IF(AND($G$15+$G$18-A43>0,A43>=$G$15,$G$8="Professional"),VLOOKUP(V43,'P-DATA'!$B$2:$C$21,2,TRUE),"")) ->  | E28: =IF(D28=0,"",HLOOKUP(D28,$B$38:$T$45,6,FALSE)) -> 
B29: 2027 | C29: =IF(AND($G$15+$G$18-A44>0,A44>=$G$15,$G$8="Academic"),VLOOKUP(V44,'A-DATA'!$B$2:$C$20,2,TRUE),IF(AND($G$15+$G$18-A44>0,A44>=$G$15,$G$8="Professional"),VLOOKUP(V44,'P-DATA'!$B$2:$C$21,2,TRUE),"")) ->  | E29: =IF(D29=0,"",HLOOKUP(D29,$B$38:$T$45,7,FALSE)) -> 
B30: 2028 | C30: =IF(AND($G$15+$G$18-A45>0,A45>=$G$15,$G$8="Academic"),VLOOKUP(V45,'A-DATA'!$B$2:$C$20,2,TRUE),IF(AND($G$15+$G$18-A45>0,A45>=$G$15,$G$8="Professional"),VLOOKUP(V45,'P-DATA'!$B$2:$C$21,2,TRUE),"")) ->  | E30: =IF(D30=0,"",HLOOKUP(D30,$B$38:$T$45,8,FALSE)) -> 
D31: TOTAL | E31: =SUM(E24:E30) -> 0 | F31: =SUM(F24:F30) -> 0 | G31: =SUM(G24:G30) -> 0
A33: PLEASE NOTE: | B33: * The figures calculated by this tool are to assist you in prepaing Research Grant applications only. * This tool can be used to estimate in-kind contributions of UOW staff and estimate the cost of employing staff at UOW on research projects. * The figures include a nominal yearly % increase and are therefore projected estimates only. * They do not represent Union or UOW Management proposals for future EBAs.
A37: days per week | B37: 5 | C37: 4.75 | D37: 4.5 | E37: 4.25 | F37: 4 | G37: 3.75 | H37: 3.5 | I37: 3.25 | J37: 3 | K37: 2.75 | L37: 2.5 | M37: 2.25 | N37: 2 | O37: 1.75 | P37: 1.5 | Q37: 1.25 | R37: 1 | S37: 0.75 | T37: 0.5
A38: FTE | B38: 1 | C38: 0.95 | D38: 0.9 | E38: 0.85 | F38: 0.8 | G38: 0.75 | H38: 0.7 | I38: 0.65 | J38: 0.6 | K38: 0.55 | L38: 0.5 | M38: 0.45 | N38: 0.4 | O38: 0.35 | P38: 0.3 | Q38: 0.25 | R38: 0.2 | S38: 0.15 | T38: 0.1
A39: 2022 | B39: =IF(ISBLANK(D24),"",IF(AND($G$15+$G$18-A39>0,A39>=$G$15, G8="Academic"),IF($G$15=A39,VLOOKUP(V39,Academic!$A$2:'Academic'!$H$20,(2),TRUE),IF($G$15=A40,VLOOKUP(V40,Academic!$A$2:'Academic'!$H$20,(2),TRUE),IF($G$15=A41,VLOOKUP(V41,Academic!$A$2:'Academic'!$H$20,(2),TRUE),IF($G$15=A42,VLOOKUP(V42,Academic!$A$2:'Academic'!$H$20,(2),TRUE),IF($G$15=A43,VLOOKUP(V43,Academic!$A$2:'Academic'!$H$20,(2),TRUE),IF($G$15=A44,VLOOKUP(V44,Academic!$A$2:'Academic'!$H$20,(2),TRUE))))))),IF(AND($G$15+$G$18-A39>0,A39>=$G$15, G8="Professional"),IF($G$15= A39,VLOOKUP(V39,Professional!$A$2:'Professional'!$H$21,(2),TRUE),IF($G$15=A40,VLOOKUP(V40,Professional!$A$2:'Professional'!$H$21,(2),TRUE),IF($G$15=A41,VLOOKUP(V41,Professional!$A$2:'Professional'!$H$21,(2),TRUE),IF($G$15=A42,VLOOKUP(V42,Professional!$A$2:'Professional'!$H$21,(2),TRUE),IF($G$15=A43,VLOOKUP(V43,Professional!$A$2:'Professional'!$H$21,(2),TRUE),IF($G$15=A44,VLOOKUP(V44,Professional!$A$2:'Professional'!$H$21,(2),TRUE),"")))))),""))) ->  | C39: =IF(ISERROR($B39*$C$38),"",$B39*$C$38) ->  | D39: =IF(ISERROR($B39*$D$38),"",$B39*$D$38) ->  | E39: =IF(ISERROR($B39*$E$38),"",$B39*$E$38) ->  | F39: =IF(ISERROR($B39*$F$38),"",$B39*$F$38) ->  | G39: =IF(ISERROR($B39*$G$38),"",$B39*$G$38) ->  | H39: =IF(ISERROR($B39*$H$38),"",$B39*$H$38) ->  | I39: =IF(ISERROR($B39*$I$38),"",$B39*$I$38) ->  | J39: =IF(ISERROR($B39*$J$38),"",$B39*$J$38) ->  | K39: =IF(ISERROR($B39*$K$38),"",$B39*$K$38) ->  | L39: =IF(ISERROR($B39*$L$38),"",$B39*$L$38) ->  | M39: =IF(ISERROR($B39*$M$38),"",$B39*$M$38) ->  | N39: =IF(ISERROR($B39*$N$38),"",$B39*$N$38) ->  | O39: =IF(ISERROR($B39*$O$38),"",$B39*$O$38) ->  | P39: =IF(ISERROR($B39*$P$38),"",$B39*$P$38) ->  | Q39: =IF(ISERROR($B39*$Q$38),"",$B39*$Q$38) ->  | R39: =IF(ISERROR($B39*$R$38),"",$B39*$R$38) ->  | S39: =IF(ISERROR($B39*$S$38),"",$B39*$S$38) ->  | T39: =IF(ISERROR($B39*$T$38),"",$B39*$T$38) ->  | V39: =IF(AND($G$15+$G$18-A39>0,A39>=$G$15),$G$13+A39-$G$15,0) -> 0
A40: 2023 | B40: =IF(ISBLANK(D25),"",IF(AND($G$15+$G$18-A40>0,A40>=$G$15, G8="Academic"),IF($G$15=A39,VLOOKUP(V40,Academic!$A$2:'Academic'!$H$20,(3),TRUE),IF($G$15=A40,VLOOKUP(V40,Academic!$A$2:'Academic'!$H$20,(3),TRUE),IF($G$15=A41,VLOOKUP(V41,Academic!$A$2:'Academic'!$H$20,(3),TRUE),IF($G$15=A42,VLOOKUP(V42,Academic!$A$2:'Academic'!$H$20,(3),TRUE),IF($G$15=A43,VLOOKUP(V43,Academic!$A$2:'Academic'!$H$20,(3),TRUE),IF($G$15=A44,VLOOKUP(V44,Academic!$A$2:'Academic'!$H$20,(3),TRUE))))))),IF(AND($G$15+$G$18-A40>0,A40>=$G$15, G8="Professional"),IF($G$15=A39,VLOOKUP(V40,Professional!$A$2:'Professional'!$H$21,(3),TRUE),IF($G$15=A40,VLOOKUP(V40,Professional!$A$2:'Professional'!$H$21,(3),TRUE),IF($G$15=A41,VLOOKUP(V41,Professional!$A$2:'Professional'!$H$21,(3),TRUE),IF($G$15=A42,VLOOKUP(V42,Professional!$A$2:'Professional'!$H$21,(3),TRUE),IF($G$15=A43,VLOOKUP(V43,Professional!$A$2:'Professional'!$H$21,(3),TRUE),IF($G$15=A44,VLOOKUP(V44,Professional!$A$2:'Professional'!$H$21,(3),TRUE),"")))))),""))) ->  | C40: =IF(ISERROR($B40*$C$38),"",$B40*$C$38) ->  | E40: =IF(ISERROR($B40*$E$38),"",$B40*$E$38) ->  | G40: =IF(ISERROR($B40*$G$38),"",$B40*$G$38) ->  | I40: =IF(ISERROR($B40*$I$38),"",$B40*$I$38) ->  | K40: =IF(ISERROR($B40*$K$38),"",$B40*$K$38) ->  | M40: =IF(ISERROR($B40*$M$38),"",$B40*$M$38) ->  | O40: =IF(ISERROR($B40*$O$38),"",$B40*$O$38) ->  | Q40: =IF(ISERROR($B40*$Q$38),"",$B40*$Q$38) ->  | S40: =IF(ISERROR($B40*$S$38),"",$B40*$S$38) ->  | V40: =IF(AND($G$15+$G$18-A40>0,A40>=$G$15),IF($G$8="Academic",IF(AND(OR(MOD(V39,5)=0,MOD(V39,18)=0,MOD(V39,19)=0),V39>0),V39,$G$13+A40-$G$15),IF($G$11=67,IF(AND(MOD(V39,20)=0,V39>0),V39,$G$13+A40-$G$15),IF($G$11=5,IF(AND(MOD(V39,12)=0,V39>0),V39,$G$13+A40-$G$15),IF($G$11=34,IF(AND(MOD(V39,7)=0,V39>0),V39,$G$13+A40-$G$15))))),0) -> 0
A41: 2024 | B41: =IF(ISBLANK(D26),"",IF(AND($G$15+$G$18-A41>0,A41>=$G$15, G8="Academic"),IF($G$15=A39,VLOOKUP(V41,Academic!$A$2:'Academic'!$H$20,(4),TRUE),IF($G$15=A40,VLOOKUP(V41,Academic!$A$2:'Academic'!$H$20,(4),TRUE),IF($G$15=A41,VLOOKUP(V41,Academic!$A$2:'Academic'!$H$20,(4),TRUE),IF($G$15=A42,VLOOKUP(V42,Academic!$A$2:'Academic'!$H$20,(4),TRUE),IF($G$15=A43,VLOOKUP(V43,Academic!$A$2:'Academic'!$H$20,(4),TRUE),IF($G$15=A44,VLOOKUP(V44,Academic!$A$2:'Academic'!$H$20,(4),TRUE))))))),IF(AND($G$15+$G$18-A41>0,A41>=$G$15, G8="Professional"),IF($G$15=A39,VLOOKUP(V41,Professional!$A$2:'Professional'!$H$21,(4),TRUE),IF($G$15=A40,VLOOKUP(V41,Professional!$A$2:'Professional'!$H$21,(4),TRUE),IF($G$15=A41,VLOOKUP(V41,Professional!$A$2:'Professional'!$H$21,(4),TRUE),IF($G$15=A42,VLOOKUP(V42,Professional!$A$2:'Professional'!$H$21,(4),TRUE),IF($G$15=A43,VLOOKUP(V43,Professional!$A$2:'Professional'!$H$21,(4),TRUE),IF($G$15=A44,VLOOKUP(V44,Professional!$A$2:'Professional'!$H$21,(4),TRUE),"")))))),""))) ->  | V41: =IF(AND($G$15+$G$18-A41>0,A41>=$G$15),IF($G$8="Academic",IF(AND(OR(MOD(V40,5)=0,MOD(V40,18)=0,MOD(V40,19)=0),V40>0),V40,$G$13+A41-$G$15),IF($G$11=67,IF(AND(MOD(V40,20)=0,V40>0),V40,$G$13+A41-$G$15),IF($G$11=5,IF(AND(MOD(V40,12)=0,V40>0),V40,$G$13+A41-$G$15),IF($G$11=34,IF(AND(MOD(V40,7)=0,V40>0),V40,$G$13+A41-$G$15))))),0) -> 0
A42: 2025 | B42: =IF(ISBLANK(D27),"",IF(AND($G$15+$G$18-A42>0,A42>=$G$15, G8="Academic"),IF($G$15=A39,VLOOKUP(V42,Academic!$A$2:'Academic'!$H$20,(5),TRUE),IF($G$15=A40,VLOOKUP(V42,Academic!$A$2:'Academic'!$H$20,(5),TRUE),IF($G$15=A41,VLOOKUP(V42,Academic!$A$2:'Academic'!$H$20,(5),TRUE),IF($G$15=A42,VLOOKUP(V42,Academic!$A$2:'Academic'!$H$20,(5),TRUE),IF($G$15=A43,VLOOKUP(V43,Academic!$A$2:'Academic'!$H$20,(5),TRUE),IF($G$15=A44,VLOOKUP(V44,Academic!$A$2:'Academic'!$H$20,(5),TRUE))))))),IF(AND($G$15+$G$18-A42>0,A42>=$G$15, G8="Professional"),IF($G$15=A39,VLOOKUP(V42,Professional!$A$2:'Professional'!$H$21,(5),TRUE),IF($G$15=A40,VLOOKUP(V42,Professional!$A$2:'Professional'!$H$21,(5),TRUE),IF($G$15=A41,VLOOKUP(V42,Professional!$A$2:'Professional'!$H$21,(5),TRUE),IF($G$15=A42,VLOOKUP(V42,Professional!$A$2:'Professional'!$H$21,(5),TRUE),IF($G$15=A43,VLOOKUP(V43,Professional!$A$2:'Professional'!$H$21,(5),TRUE),IF($G$15=A44,VLOOKUP(V44,Professional!$A$2:'Professional'!$H$21,(5),TRUE),"")))))),""))) ->  | V42: 0
A43: 2026 | B43: =IF(ISBLANK(D28),"",IF(AND($G$15+$G$18-A43>0,A43>=$G$15, G8="Academic"),IF($G$15=A39,VLOOKUP(V43,Academic!$A$2:'Academic'!$H$20,(6),TRUE),IF($G$15=A40,VLOOKUP(V43,Academic!$A$2:'Academic'!$H$20,(6),TRUE),IF($G$15=A41,VLOOKUP(V43,Academic!$A$2:'Academic'!$H$20,(6),TRUE),IF($G$15=A42,VLOOKUP(V43,Academic!$A$2:'Academic'!$H$20,(6),TRUE),IF($G$15=A43,VLOOKUP(V43,Academic!$A$2:'Academic'!$H$20,(6),TRUE),IF($G$15=A44,VLOOKUP(V44,Academic!$A$2:'Academic'!$H$20,(6),TRUE))))))),IF(AND($G$15+$G$18-A43>0,A43>=$G$15, G8="Professional"),IF($G$15=A39,VLOOKUP(V43,Professional!$A$2:'Professional'!$H$21,(6),TRUE),IF($G$15=A40,VLOOKUP(V43,Professional!$A$2:'Professional'!$H$21,(6),TRUE),IF($G$15=A41,VLOOKUP(V43,Professional!$A$2:'Professional'!$H$21,(6),TRUE),IF($G$15=A42,VLOOKUP(V43,Professional!$A$2:'Professional'!$H$21,(6),TRUE),IF($G$15=A43,VLOOKUP(V43,Professional!$A$2:'Professional'!$H$21,(6),TRUE),IF($G$15=A44,VLOOKUP(V44,Professional!$A$2:'Professional'!$H$21,(6),TRUE),"")))))),""))) ->  | V43: 0
A44: 2027 | B44: =IF(ISBLANK(D29),"",IF(AND($G$15+$G$18-A44>0,A44>=$G$15, G8="Academic"),IF($G$15=A39,VLOOKUP(V44,Academic!$A$2:'Academic'!$H$20,(7),TRUE),IF($G$15=A40,VLOOKUP(V44,Academic!$A$2:'Academic'!$H$20,(7),TRUE),IF($G$15=A41,VLOOKUP(V44,Academic!$A$2:'Academic'!$H$20,(7),TRUE),IF($G$15=A42,VLOOKUP(V44,Academic!$A$2:'Academic'!$H$20,(7),TRUE),IF($G$15=A43,VLOOKUP(V44,Academic!$A$2:'Academic'!$H$20,(7),TRUE),IF($G$15=A44,VLOOKUP(V44,Academic!$A$2:'Academic'!$H$20,(7),TRUE))))))),IF(AND($G$15+$G$18-A44>0,A44>=$G$15, G8="Professional"),IF($G$15=A39,VLOOKUP(V44,Professional!$A$2:'Professional'!$H$21,(7),TRUE),IF($G$15=A40,VLOOKUP(V44,Professional!$A$2:'Professional'!$H$21,(7),TRUE),IF($G$15=A41,VLOOKUP(V44,Professional!$A$2:'Professional'!$H$21,(7),TRUE),IF($G$15=A42,VLOOKUP(V44,Professional!$A$2:'Professional'!$H$21,(7),TRUE),IF($G$15=A43,VLOOKUP(V44,Professional!$A$2:'Professional'!$H$21,(7),TRUE),IF($G$15=A44,VLOOKUP(V44,Professional!$A$2:'Professional'!$H$21,(7),TRUE),"")))))),""))) ->  | V44: 0
A45: 2028 | B45: =IF(ISBLANK(D30),"",IF(AND($G$15+$G$18-A45>0,A45>=$G$15, G8="Academic"),IF($G$15=A39,VLOOKUP(V45,Academic!$A$2:'Academic'!$H$20,(8),TRUE),IF($G$15=A40,VLOOKUP(V45,Academic!$A$2:'Academic'!$H$20,(8),TRUE),IF($G$15=A41,VLOOKUP(V45,Academic!$A$2:'Academic'!$H$20,(8),TRUE),IF($G$15=A42,VLOOKUP(V45,Academic!$A$2:'Academic'!$H$20,(8),TRUE),IF($G$15=A43,VLOOKUP(V45,Academic!$A$2:'Academic'!$H$20,(8),TRUE),IF($G$15=A44,VLOOKUP(V45,Academic!$A$2:'Academic'!$H$20,(8),TRUE))))))),IF(AND($G$15+$G$18-A45>0,A45>=$G$15, G8="Professional"),IF($G$15=A39,VLOOKUP(V45,Professional!$A$2:'Professional'!$H$21,(8),TRUE),IF($G$15=A40,VLOOKUP(V45,Professional!$A$2:'Professional'!$H$21,(8),TRUE),IF($G$15=A41,VLOOKUP(V45,Professional!$A$2:'Professional'!$H$21,(8),TRUE),IF($G$15=A42,VLOOKUP(V45,Professional!$A$2:'Professional'!$H$21,(8),TRUE),IF($G$15=A43,VLOOKUP(V45,Professional!$A$2:'Professional'!$H$21,(8),TRUE),IF($G$15=A44,VLOOKUP(V45,Professional!$A$2:'Professional'!$H$21,(8),TRUE),"")))))),""))) ->  | V45: 0
B46: =SUM(B39:B44) -> 0 | C46: =SUM(C39:C44) -> 0 | D46: 0 | E46: 0 | F46: 0 | G46: 0 | H46: 0 | I46: 0 | J46: 0 | K46: 0 | L46: 0 | M46: 0 | N46: 0 | O46: 0 | P46: 0 | Q46: 0 | R46: 0 | S46: 0 | T46: 0
B64: =QUOTIENT(100*A64,5)*5/100 -> 0
C66: IF (start year + No. of years - A11) > 0… AND A11 >= Start year

Sheet Academic (hidden)
A1: No. | B1: 2022 | C1: 2023 | D1: 2024 | E1: 2025 | F1: 2026 | G1: 2027 | H1: 2028 | I1: Level
A2: 1 | B2: 110254 | C2: =B2*1.02 -> 112459.08 | D2: 114708.2616 | E2: 117002.4268 | F2: 119342.4754 | G2: 121729.3249 | H2: 124163.9114 | I2: Level A Postdoc
A3: 2 | B3: 114569 | C3: =B3*1.02 -> 116860.38 | D3: 119197.5876 | E3: 121581.5394 | F3: 124013.1701 | G3: 126493.4335 | H3: 129023.3022
A4: 3 | B4: 118881 | C4: 121258.62 | D4: 123683.7924 | E4: 126157.4682 | F4: 128680.6176 | G4: 131254.23 | H4: 133879.3146
A5: 4 | B5: 123196 | C5: 125659.92 | D5: 128173.1184 | E5: 130736.5808 | F5: 133351.3124 | G5: 136018.3386 | H5: 138738.7054
A6: 5 | B6: 129173 | C6: 131756.46 | D6: 134391.5892 | E6: 137079.421 | F6: 139821.0094 | G6: 142617.4296 | H6: 145469.7782
A7: 6 | B7: 139126 | C7: 141908.52 | D7: 144746.6904 | E7: 147641.6242 | F7: 150594.4567 | G7: 153606.3458 | H7: 156678.4727 | I7: Level B Lecturer
A8: 7 | B8: 144101 | C8: 146983.02 | D8: 149922.6804 | E8: 152921.134 | F8: 155979.5567 | G8: 159099.1478 | H8: 162281.1308
A9: 8 | B9: 149083 | C9: 152064.66 | D9: 155105.9532 | E9: 158208.0723 | F9: 161372.2337 | G9: 164599.6784 | H9: 167891.672
A10: 9 | B10: 154056 | C10: 157137.12 | D10: 160279.8624 | E10: 163485.4596 | F10: 166755.1688 | G10: 170090.2722 | H10: 173492.0777
A11: 10 | B11: 160672 | C11: 163885.44 | D11: 167163.1488 | E11: 170506.4118 | F11: 173916.54 | G11: 177394.8708 | H11: 180942.7682
A12: 11 | B12: 168993 | C12: 172372.86 | D12: 175820.3172 | E12: 179336.7235 | F12: 182923.458 | G12: 186581.9272 | H12: 190313.5657 | I12: Level C Senior Lecturer
A13: 12 | B13: 173970 | C13: 177449.4 | D13: 180998.388 | E13: 184618.3558 | F13: 188310.7229 | G13: 192076.9373 | H13: 195918.4761
A14: 13 | B14: 178948 | C14: 182526.96 | D14: 186177.4992 | E14: 189901.0492 | F14: 193699.0702 | G14: 197573.0516 | H14: 201524.5126
A15: 14 | B15: 183923 | C15: 187601.46 | D15: 191353.4892 | E15: 195180.559 | F15: 199084.1702 | G15: 203065.8536 | H15: 207127.1706
A16: 15 | B16: 190594 | C16: 194405.88 | D16: 198293.9976 | E16: 202259.8776 | F16: 206305.0751 | G16: 210431.1766 | H16: 214639.8001
A17: 16 | B17: 203832 | C17: 207908.64 | D17: 212066.8128 | E17: 216308.1491 | F17: 220634.312 | G17: 225046.9983 | H17: 229547.9382 | I17: Level D A/Professor
A18: 17 | B18: 210469 | C18: 214678.38 | D18: 218971.9476 | E18: 223351.3866 | F18: 227818.4143 | G18: 232374.7826 | H18: 237022.2782
A19: 18 | B19: 218749 | C19: 223123.98 | D19: 227586.4596 | E19: 232138.1888 | F19: 236780.9526 | G19: 241516.5716 | H19: 246346.9031
A20: 19 | B20: 253611 | C20: 258683.22 | D20: 263856.8844 | E20: 269134.0221 | F20: 274516.7025 | G20: 280007.0366 | H20: 285607.1773 | I20: Level E1 - Professor
A21: 20 | B21: =B20*1.1 -> 278972.1 | C21: 284551.542 | D21: 290242.5728 | E21: 296047.4243 | F21: 301968.3728 | G21: 308007.7402 | H21: 314167.895 | I21: Level E2 - S/Professor
A22: 21 | B22: =B20*1.25 -> 317013.75 | C22: 323354.025 | D22: 329821.1055 | E22: 336417.5276 | F22: 343145.8782 | G22: 350008.7957 | H22: 357008.9716 | I22: Level E3 - D/Professor

Sheet A-DATA (hidden)
A1: Level / Step | B1: No. | C1: Level / Step | E1: Level | F1: Steps
A2: A1 | B2: 1 | C2: A1 | E2: A | F2: 1 | G2: 2 | H2: 3 | I2: 4 | J2: 5
A3: A2 | B3: 2 | C3: A2 | E3: B | F3: 1 | G3: 2 | H3: 3 | I3: 4 | J3: 5
A4: A3 | B4: 3 | C4: A3 | E4: C | F4: 1 | G4: 2 | H4: 3 | I4: 4 | J4: 5
A5: A4 | B5: 4 | C5: A4 | E5: D | F5: 1 | G5: 2 | H5: 3
A6: A5 | B6: 5 | C6: A5 | E6: E | F6: 1 | G6: Senior | H6: Distinguished
A7: B1 | B7: 6 | C7: B1
A8: B2 | B8: 7 | C8: B2 | E8: Start Year | F8: Total Years
A9: B3 | B9: 8 | C9: B3 | E9: 2022 | F9: 1 | G9: 2 | H9: 3 | I9: 4 | J9: 5 | K9: 6 | L9: 7
A10: B4 | B10: 9 | C10: B4 | E10: 2023 | F10: 1 | G10: 2 | H10: 3 | I10: 4 | J10: 5 | K10: 6
A11: B5 | B11: 10 | C11: B5 | E11: 2024 | F11: 1 | G11: 2 | H11: 3 | I11: 4 | J11: 5
A12: C1 | B12: 11 | C12: C1 | E12: 2025 | F12: 1 | G12: 2 | H12: 3 | I12: 4
A13: C2 | B13: 12 | C13: C2 | E13: 2026 | F13: 1 | G13: 2 | H13: 3
A14: C3 | B14: 13 | C14: C3 | E14: 2027 | F14: 1 | G14: 2
A15: C4 | B15: 14 | C15: C4 | E15: 2028 | F15: 1
A16: C5 | B16: 15 | C16: C5
A17: D1 | B17: 16 | C17: D1
A18: D2 | B18: 17 | C18: D2
A19: D3 | B19: 18 | C19: D3
A20: E1 | B20: 19 | C20: E1
A21: E-Sen | B21: 20 | C21: E2
A22: E-Dis | B22: 21 | C22: E3

Sheet Professional (hidden)
A1: No. | B1: 2022 | C1: 2023 | D1: 2024 | E1: 2025 | F1: 2026 | G1: 2027 | H1: 2028 | I1: Level
A2: 1 | B2: 74854 | C2: =B2*1.02 -> 76351.08 | D2: 77878.1016 | E2: 79435.66363 | F2: 81024.3769 | G2: 82644.86444 | H2: 84297.76173 | I2: Level 3/4
A3: 2 | B3: 78529 | C3: =B3*1.02 -> 80099.58 | D3: 81701.5716 | E3: 83335.60303 | F3: 85002.31509 | G3: 86702.36139 | H3: 88436.40862
A4: 3 | B4: 82201 | C4: 83845.02 | D4: 85521.9204 | E4: 87232.35881 | F4: 88977.00598 | G4: 90756.5461 | H4: 92571.67703
A5: 4 | B5: 85873 | C5: 87590.46 | D5: 89342.2692 | E5: 91129.11458 | F5: 92951.69688 | G5: 94810.73081 | H5: 96706.94543
A6: 5 | B6: 89548 | C6: 91338.96 | D6: 93165.7392 | E6: 95029.05398 | F6: 96929.63506 | G6: 98868.22776 | H6: 100845.5923
A7: 6 | B7: 93222 | C7: 95086.44 | D7: 96988.1688 | E7: 98927.93218 | F7: 100906.4908 | G7: 102924.6206 | H7: 104983.113
A8: 7 | B8: 95421 | C8: 97329.42 | D8: 99276.0084 | E8: 101261.5286 | F8: 103286.7591 | G8: 105352.4943 | H8: 107459.5442
A9: 8 | B9: 95421 | C9: =B9*1.02 -> 97329.42 | D9: =C9*1.02 -> 99276.0084 | E9: =D9*1.02 -> 101261.5286 | F9: =E9*1.02 -> 103286.7591 | G9: =F9*1.02 -> 105352.4943 | H9: =G9*1.02 -> 107459.5442 | I9: Level 5
A10: 9 | B10: 96891 | C10: 98828.82 | D10: 100805.3964 | E10: 102821.5043 | F10: 104877.9344 | G10: 106975.4931 | H10: 109115.003
A11: 10 | B11: 100563 | C11: 102574.26 | D11: 104625.7452 | E11: 106718.2601 | F11: 108852.6253 | G11: 111029.6778 | H11: 113250.2714
A12: 11 | B12: 104236 | C12: 106320.72 | D12: 108447.1344 | E12: 110616.0771 | F12: 112828.3986 | G12: 115084.9666 | H12: 117386.6659
A13: 12 | B13: 107911 | C13: 110069.22 | D13: 112270.6044 | E13: 114516.0165 | F13: 116806.3368 | G13: 119142.4636 | H13: 121525.3128
A14: 13 | B14: 107911 | C14: 110069.22 | D14: 112270.6044 | E14: 114516.0165 | F14: 116806.3368 | G14: 119142.4636 | H14: 121525.3128 | I14: Level 6/7
A15: 14 | B15: 111583 | C15: 113814.66 | D15: 116090.9532 | E15: 118412.7723 | F15: 120781.0277 | G15: 123196.6483 | H15: 125660.5812
A16: 15 | B16: 115256 | C16: 117561.12 | D16: 119912.3424 | E16: 122310.5892 | F16: 124756.801 | G16: 127251.9371 | H16: 129796.9758
A17: 16 | B17: 118932 | C17: 121310.64 | D17: 123736.8528 | E17: 126211.5899 | F17: 128735.8217 | G17: 131310.5381 | H17: 133936.7488
A18: 17 | B18: 122606 | C18: 125058.12 | D18: 127559.2824 | E18: 130110.468 | F18: 132712.6774 | G18: 135366.931 | H18: 138074.2696
A19: 18 | B19: 126274 | C19: 128799.48 | D19: 131375.4696 | E19: 134002.979 | F19: 136683.0386 | G19: 139416.6993 | H19: 142205.0333
A20: 19 | B20: 129945 | C20: 132543.9 | D20: 135194.778 | E20: 137898.6736 | F20: 140656.647 | G20: 143469.78 | H20: 146339.1756
A21: 20 | B21: 133623 | C21: 136295.46 | D21: 139021.3692 | E21: 141801.7966 | F21: 144637.8325 | G21: 147530.5892 | H21: 150481.2009

Sheet P-DATA (hidden)
A1: Level / Step | B1: No. | C1: Level / Step | E1: Level | F1: Steps
A2: 341 | B2: 1 | C2: 3-4/1 | E2: 34 | F2: 1 | G2: 2 | H2: 3 | I2: 4 | J2: 5 | K2: 6 | L2: 7
A3: 342 | B3: 2 | C3: 3-4/2 | E3: 5 | F3: 1 | G3: 2 | H3: 3 | I3: 4 | J3: 5
A4: 343 | B4: 3 | C4: 3-4/3 | E4: 67 | F4: 1 | G4: 2 | H4: 3 | I4: 4 | J4: 5 | K4: 6 | L4: 7 | M4: 8
A5: 344 | B5: 4 | C5: 3-4/4 | E5: -
A6: 345 | B6: 5 | C6: 3-4/5 | E6: -
A7: 346 | B7: 6 | C7: 3-4/6
A8: 347 | B8: 7 | C8: 3-4/7 | E8: Start Year | F8: Total Years
A9: 51 | B9: 8 | C9: 5/1 | E9: 2022 | F9: 1 | G9: 2 | H9: 3 | I9: 4 | J9: 5 | K9: 6 | L9: 7
A10: 52 | B10: 9 | C10: 5/2 | E10: 2023 | F10: 1 | G10: 2 | H10: 3 | I10: 4 | J10: 5 | K10: 6
A11: 53 | B11: 10 | C11: 5/3 | E11: 2024 | F11: 1 | G11: 2 | H11: 3 | I11: 4 | J11: 5
A12: 54 | B12: 11 | C12: 5/4 | E12: 2025 | F12: 1 | G12: 2 | H12: 3 | I12: 4
A13: 55 | B13: 12 | C13: 5/5 | E13: 2026 | F13: 1 | G13: 2 | H13: 3
A14: 671 | B14: 13 | C14: 6-7/1 | E14: 2027 | F14: 1 | G14: 2
A15: 672 | B15: 14 | C15: 6-7/2 | E15: 2028 | F15: 1
A16: 673 | B16: 15 | C16: 6-7/3
A17: 674 | B17: 16 | C17: 6-7/4
A18: 675 | B18: 17 | C18: 6-7/5
A19: 676 | B19: 18 | C19: 6-7/6
A20: 677 | B20: 19 | C20: 6-7/7
A21: 678 | B21: 20 | C21: 6-7/8
